Cogmind - Beta 17.1 @@@ ROGUE MODE // 2026.08.26 @ 00:07:23 Player: naththebg Result: Self-destructed Performance ------------- Evolutions (2) 1000 Regions Visited (3) 600 Robots Destroyed (40) 200 Value Destroyed (965) 965 Prototype IDs (3) 60 Alien Tech Used (0) 0 Bonus (6286) 6286 TOTAL SCORE: 9111 Bonus ------- High Alert Combat Kills 36 Prayed to X0-1V1 5000 Major X0-1V1 Interference 1250 Cogmind --------- Core Integrity 674/700 Matter 289/700 Energy 129/140 System Corruption 0% Temperature Danger (407) Movement Treading (152) Location -8/Materials Parts ------- > --- POWER (1) -------- Light Deuterium Engine > --- PROPULSION (3) --- Advanced Treads Medium Treads (fused) > --- UTILITY (4) ------ Large Storage Unit 0b10 Decoder Chip [Scout] (fused) Tractor Beam (fused) Self-contained Transmogrifier > --- WEAPON (3) ------- Advanced Beam Cannon Advanced Beam Cannon Advanced Beam Cannon > --- INVENTORY (15) --- Ion Engine Light Treads Light Treads Light Treads Light Treads Compact Wheel Small Storage Unit Hacking Suite Hacking Suite Hacking Suite Hacking Suite Particle Cannon Peak State ------------ > --- POWER ------------ Light Deuterium Engine > --- PROPULSION ------- Advanced Treads Medium Treads > --- UTILITY ---------- Thermal Generator Large Storage Unit Self-contained Transmogrifier X0-1V1's Piety Tracker > --- WEAPON ----------- Small Laser Particle Gun > --- INVENTORY -------- Ion Engine Light Deuterium Engine Light Treads Light Treads Light Treads Advanced Treads Compact Wheel Small Storage Unit [Rating: 40] Favorites ----------- Power Ion Engine Engine Ion Engine Propulsion Light Treads Treads Light Treads Wheel Compact Wheel Utility Self-contained Transmogrifier Device Self-contained Transmogrifier Storage Large Storage Unit Processor Visual Processing Unit Protection Powered Armor Weapon Advanced Beam Cannon Energy Gun Medium Laser Energy Cannon Advanced Beam Cannon Ballistic Gun Light Assault Rifle Slashing Weapon Blade Saw Build | -11 -10 -9 -8 ------- Run | Yrd Mat Mat Mat Slots Evolved 4 | . . 2 2 Power . | . . . . Propulsion 1 | . . . 1 Utility 2 | . . 2 . Weapon 1 | . . . 1 Parts Attached 29 | 6 5 15 3 Power 4 | 1 . 3 . Engine 4 | 1 . 3 . Core . | . . . . Reactor . | . . . . Propulsion 8 | 2 2 3 1 Treads 7 | 2 1 3 1 Leg . | . . . . Wheel 1 | . 1 . . Hover . | . . . . Flight . | . . . . Utility 7 | 1 1 5 . Device 5 | . 1 4 . Storage 2 | 1 . 1 . Processor . | . . . . Hackware . | . . . . Protection . | . . . . Artifact . | . . . . Weapon 10 | 2 2 4 2 Energy Gun 3 | 1 2 . . Energy Cannon 6 | . . 4 2 Ballistic Gun 1 | 1 . . . Ballistic Cannon . | . . . . Launcher . | . . . . Special Weapon . | . . . . Impact Weapon . | . . . . Slashing Weapon . | . . . . Piercing Weapon . | . . . . Special Melee Weapon . | . . . . Unidentified Prototypes 2 | . . 2 . Parts Lost 5 | . 1 3 1 Power 1 | . . 1 . Propulsion 2 | . . 1 1 Utility . | . . . . Weapon 2 | . 1 1 . Highest Loss Streak 1 | . 1 1 1 To Critical Strikes . | . . . . Average Backups 8 | 4 7 9 13 Power 1 | . 1 1 1 Propulsion 4 | 2 4 4 5 Utility 1 | . . 2 5 Weapon 1 | . 1 1 2 Tool/Special . | . . . . Unused Backups 12 | . 4 . 8 Power . | . . . . Propulsion 6 | . 3 . 3 Utility 4 | . . . 4 Weapon 2 | . 1 . 1 Tool/Special . | . . . . Average Slot Usage (%) 95 | . 89 98 98 Engine 11 | . 14 11 9 Treads 24 | . 28 21 27 Device 17 | . 4 25 18 Storage 11 | . 14 11 9 Processor 2 | . . 3 9 Protection 2 | . . 3 . Energy Gun 11 | . 16 9 . Energy Cannon 7 | . . 11 21 Ballistic Gun 3 | . 10 . . Peak Build Rating 40 | 6 18 40 40 Average Rating 22 | 4 9 31 39 On Entrance 14 | . 6 17 35 Avg Prop Armor Cover (%) 39 | 39 . . . Naked Turns . | . . . . Heaviest Build 44 | 13 15 44 38 Greatest Support 72 | 40 40 50 72 Greatest Overweight (x) 1 | 1 . . . Average Overweight (x) . | . . . . Largest Inventory Capacity 15 | 8 8 15 15 Average Capacity 12 | 7 7 14 15 Most Carried 15 | 8 8 15 14 Average Carried 8 | 4 7 9 12 Final Capacity 15 | 8 8 15 15 Final Carried 15 | 6 7 15 12 Transmogrified Parts 9 | . 1 7 1 Integrity Recovered 62 | . 3 56 3 Class Distribution -------------------- 100% | Mutant Dominant Class ---------------- Mutant | -10/Materials Mutant | -9/Materials Mutant | -8/Materials Resources | -11 -10 -9 -8 ----------- Run | Yrd Mat Mat Mat Matter Collected 492 | 228 109 155 . Remotely . | . . . . Salvage Created 1219 | . 408 811 . Parts 60 | . 21 39 . Haulers Intercepted 3 | . 1 2 . Recyclers Shooed 2 | . 1 1 . Parts Field Recycled . | . . . . Retrieved Matter . | . . . . Parts Self-Destructed . | . . . . Prevented . | . . . . Parts Restored . | . . . . Kills | -11 -10 -9 -8 ------- Run | Yrd Mat Mat Mat Combat Hostiles Destroyed 30 | . 10 20 . Guns 17 | . 10 7 . Cannons 12 | . . 12 . AOE 1 | . . 1 . Classes Destroyed 10 | . 4 6 . Worker 2 | . . 2 . Tunneler 1 | . . 1 . Hauler 3 | . 1 2 . Recycler 1 | . . 1 . Operator 1 | . 1 . . Watcher 2 | . . 2 . Swarmer 9 | . 2 7 . Grunt 16 | . 8 8 . Brawler 1 | . . 1 . Sentry 4 | . . 4 . Best Kill Streak 7 | . 4 7 . Combat Bots Only 5 | . 2 5 . Max Kills in Single Turn 4 | . 1 4 . Gunslinging . | . . . . Exploded 1 | . . 1 . Melee . | . . . . Uniques/NPCs Destroyed . | . . . . Combat | -11 -10 -9 -8 -------- Run | Yrd Mat Mat Mat Hostile Shots Fired 189 | . 46 124 19 Missed 47 | . 12 31 4 Hits 142 | . 34 93 15 Projectile 142 | . 34 93 15 Critical Strikes 4 | . . 4 . Damage Taken 1869 | . 411 1230 228 Core 265 | . 63 176 26 Absorbed by Shields . | . . . . Core Remaining (%) 73 | 100 52 68 . Volleys Fired 119 | . 35 80 4 Largest 3 | . 2 2 3 Hottest 204 | . 115 136 204 Shots Fired 229 | . 70 149 10 Gun 157 | . 70 87 . Cannon 72 | . . 62 10 Launcher . | . . . . Special . | . . . . Kinetic 27 | . 27 . . Thermal 202 | . 43 149 10 Explosive . | . . . . Electromagnetic . | . . . . Robot Hit Streak 16 | . 16 9 5 Robot Miss Streak 5 | . 4 5 2 Penetration Max . | . . . . Secondary Targets 3 | . 3 . . Max Gunslinging Chain 1 | . 1 . . Shots Hit Robots 143 | . 49 87 7 Core Hits 64 | . 23 41 . Critical Kills . | . . . . Critical Parts Destroyed . | . . . . Critical Strikes 10 | . 8 2 . Burn 10 | . 8 2 . Melee Attacks . | . . . . Impact . | . . . . Slashing . | . . . . Piercing . | . . . . Sneak Attacks . | . . . . Combat Hostiles . | . . . . Follow-up Attacks . | . . . . Damage Inflicted 2931 | . 591 2197 143 Guns 1302 | . 587 715 . Cannons 957 | . . 814 143 Explosions 627 | . . 627 . Melee . | . . . . Ramming 45 | . 4 41 . Kinetic 153 | . 153 . . Thermal 2106 | . 434 1529 143 Explosive . | . . . . Electromagnetic . | . . . . Impact . | . . . . Slashing . | . . . . Piercing . | . . . . Entropic 627 | . . 627 . Highest Corruption . | . . . . Average Corruption . | . . . . Corruption Purged . | . . . . Corruption Blocked . | . . . . Overload Shots . | . . . . Overflow Damage 3 | . . 3 . Projectiles 3 | . . 3 . Explosions . | . . . . Melee . | . . . . Knockbacks . | . . . . Impact . | . . . . Kinetic . | . . . . Secondary . | . . . . Self-Inflicted Damage . | . . . . Shots . | . . . . Rammed 10 | . 1 9 . Targets Rammed 11 | . 1 10 . Kicked . | . . . . Crushed 1 | . . 1 . Highest Temperature 398 | . 306 359 398 Average Temperature 129 | . 112 132 233 Received Heat Transfer 771 | . 168 513 90 Effects 7 | . . 4 3 Energy Bleed 2 | . . 2 . Interference 5 | . . 2 3 Siege Activations . | . . . . Martial Activations . | . . . . Shielding Activations . | . . . . Robots Disrupted . | . . . . Combat Hostiles . | . . . . Robots Corrupted . | . . . . Combat Hostiles . | . . . . Parts Fried . | . . . . Impact Corruptions . | . . . . Robots Melted . | . . . . Combat Hostiles . | . . . . Parts Melted 11 | . 7 4 . Heat Transferred 5366 | . 1813 3294 259 Parts Sabotaged . | . . . . Parts Stolen . | . . . . Parts Stripped . | . . . . Power Chain Reactions . | . . . . Alert | -11 -10 -9 -8 ------- Run | Yrd Mat Mat Mat Maximum Alert Level 2 | . . 2 . Low Security (%) 66 | 100 100 43 100 Level 1 19 | . . 32 . Level 2 13 | . . 23 . Level 3 . | . . . . Level 4 . | . . . . Level 5 . | . . . . High Security . | . . . . Max Security . | . . . . Sterilizations 1 | . . 1 . Peak Influence 466 | . 77 466 181 Initial 176 | . . 25 176 Average 147 | . 37 223 171 Influence Increases 1155 | . 307 833 15 Destroy 0b10 Robot/C 600 | . 200 400 . Destroy 0b10 Robot/NC 50 | . 10 40 . Destroy Leader 150 | . 62 88 . Successful Hack 8 | . 4 4 . Disable Machine 30 | . . 15 15 Destroy Structure 36 | . 1 35 . Partial Spotted 30 | . 30 . . Lose Combat Pursuer 45 | . . 45 . Miscellaneous 206 | . . 206 . Influence Decreases 994 | . 246 476 272 Entered New Map 278 | . . 36 242 Time Decay 668 | . 238 410 20 Lost Part 48 | . 8 30 10 Squads Dispatched 6 | . 4 . 2 Investigation 2 | . 2 . . Extermination . | . . . . Reinforcement 3 | . 2 . 1 Assault . | . . . . Garrison 1 | . . . 1 Intercept . | . . . . Searches Triggered . | . . . . Construction Impeded . | . . . . Haulers Reinforced . | . . . . Active Scanning Responses . | . . . . Cargo Convoy Interrupts . | . . . . Stealth | -11 -10 -9 -8 --------- Run | Yrd Mat Mat Mat Distress Signals 2 | . . 2 . Communications Jammed . | . . . . Distress Signals . | . . . . Times Spotted 58 | . 15 35 8 Peak Tracking Total 8 | . 4 6 8 Tactical Retreats 2 | . . 2 . Traps | -11 -10 -9 -8 ------- Run | Yrd Mat Mat Mat Traps Triggered 4 | . 2 2 . Indirectly . | . . . . Trap Hack Attempts . | . . . . Triggered . | . . . . Disarmed . | . . . . Reprogrammed . | . . . . Reused . | . . . . Traps Extracted . | . . . . Installed . | . . . . Triggered . | . . . . Machines | -11 -10 -9 -8 ---------- Run | Yrd Mat Mat Mat Machines Disabled 2 | . . 1 1 Max in Single Turn 1 | . . 1 1 Machines Repaired . | . . . . Machines Dismantled . | . . . . Machines Sabotaged . | . . . . Overloaded Fab Kills . | . . . . Hacking | -11 -10 -9 -8 --------- Run | Yrd Mat Mat Mat Machines Accessed 3 | . 2 1 . Terminals 3 | . 2 1 . Fabricators . | . . . . Repair Stations . | . . . . Recycling Units . | . . . . Scanalyzers . | . . . . Garrison Access . | . . . . Total Hacks 7 | . 5 2 . Successful 4 | . 3 1 . Failed 3 | . 2 1 . Catastrophic . | . . . . Database Lockouts . | . . . . Manual 6 | . 4 2 . Terminals 7 | . 5 2 . Fabricators . | . . . . Repair Stations . | . . . . Recycling Units . | . . . . Scanalyzers . | . . . . Garrison Access . | . . . . Terminal Hacks 1 | . 1 . . Locate Traps 1 | . 1 . . Fabricator Hacks . | . . . . Repair Station Hacks . | . . . . Recycling Unit Hacks . | . . . . Scanalyzer . | . . . . Garrison Access Hacks . | . . . . Unauthorized Hacks 3 | . 2 1 . Terminals 3 | . 2 1 . Skim 3 | . 2 1 . Fabricators . | . . . . Repair Stations . | . . . . Recycling Units . | . . . . Scanalyzers . | . . . . Garrison Access . | . . . . Data Cores Recovered . | . . . . Used . | . . . . Hacking Detections 2 | . 1 1 . Full Trace Events 1 | . 1 . . Feedback Events . | . . . . Feedback Blocked . | . . . . Robot Schematics Acquired . | . . . . Robots Built . | . . . . Authchips . | . . . . Time . | . . . . Total Robot Build Rating . | . . . . Part Schematics Acquired . | . . . . Parts Built . | . . . . Authchips . | . . . . Time . | . . . . Total Part Build Rating . | . . . . Part Studies Acquired . | . . . . Parts Repaired . | . . . . Time . | . . . . Parts Recycled . | . . . . Recycled Matter . | . . . . Retrieved Matter . | . . . . Retrieved Components . | . . . . Parts Scanalyzed . | . . . . Part Schematics Acquired . | . . . . Parts Damaged . | . . . . Bothacking | -11 -10 -9 -8 ------------ Run | Yrd Mat Mat Mat Used RIF Installer . | . . . . Robots Hacked . | . . . . Non-combat . | . . . . Combat . | . . . . Robot Hacks Applied . | . . . . Relay Couplers Released . | . . . . Fabnet Peak Effective % . | . . . . Robots Rewired . | . . . . Allies Hacked . | . . . . Hacks Repelled . | . . . . Allies | -11 -10 -9 -8 -------- Run | Yrd Mat Mat Mat Total Allies . | . . . . Largest Group . | . . . . Highest-Rated Group . | . . . . Highest-Rated Ally . | . . . . Total Orders . | . . . . Ally Attacks . | . . . . Total Damage . | . . . . Kills . | . . . . Allies Corrupted . | . . . . Allies Melted . | . . . . X0-1V1 Amusement Gains 25 | . 12 7 6 Average Entertainment 13 | . 18 12 8 Good Acts 11 | . 1 10 . Bad Acts 5 | . . 4 1 Intel | -11 -10 -9 -8 ------- Run | Yrd Mat Mat Mat Active Infowar (turns) 344 | . . 293 51 Optics 231 | . . 231 . Decoding 113 | . . 62 51 Robot Analysis Total . | . . . . Derelict Logs Recovered . | . . . . Drone Launches . | . . . . Drone Recoveries . | . . . . Decoded 0b10 Intel 2 | . . 1 1 Traps 2 | . . 1 1 Exploration | -11 -10 -9 -8 ------------- Run | Yrd Mat Mat Mat Turns Passed 1703 | 90 574 988 51 Spaces Moved 789 | 58 281 427 23 Core 25 | 25 . . . Treads 764 | 33 281 427 23 Legs . | . . . . Wheels . | . . . . Hover . | . . . . Flight . | . . . . Fastest Speed 50 | 50 160 145 150 Average Speed 154 | 129 160 154 150 Slowest Speed 160 | 160 160 160 150 Overloaded Moves . | . . . . Propulsion Burnouts . | . . . . Robots Hopped . | . . . . Potential Cave-ins . | . . . . Cave-ins Triggered . | . . . . Exploration Rate (%) 28 | 3 46 57 9 Regions Visited 3 Branch Regions . Pre-discovered Areas . | . . . . Known Exits Taken 1 | . . 1 . Unknown Exits Taken 2 | 1 1 . . Scrap Searched . | . . . . Spaces Dug . | . . . . Terrain Destroyed 40 | . . 40 . Melee . | . . . . Projectile . | . . . . AOE 40 | . . 40 . Terrain Rammed . | . . . . Walls Destroyed . | . . . . Machines Disabled . | . . . . Actions | -11 -10 -9 -8 --------- Run | Yrd Mat Mat Mat Total 1041 | 71 340 600 30 Wait 55 | . 6 49 . Move 786 | 57 280 426 23 Hop . | . . . . Pick Up 26 | 8 8 10 . Fast Attach 16 | 4 3 9 . Attach 9 | 2 1 4 2 Detach . | . . . . Swap 7 | . 2 4 1 Drop 12 | . 4 8 . Fire 119 | . 35 80 4 Melee . | . . . . Ram . | . . . . Kick . | . . . . Crush 11 | . 1 10 . Escape Stasis . | . . . . Rewire . | . . . . Trap . | . . . . Miscellaneous . | . . . . Route ------- -11/Scrapyard -10/Materials (discovered 2 exits: *Mat / [*Sub]) -9/Materials (discovered 4 exits: *Mat x2 / [*Min x2]) -8/Materials History --------- Turn | Location | Event 46 | -11/Scrapyard | Discovered new exit (range 14) 91 | -11/Scrapyard | Entered Materials 301 | -10/Materials | Build established: Mutant 495 | -10/Materials | Discovered new exit (range 8) 506 | -10/Materials | Made a sacrifice at D.C.S.S. Altar Unit 506 | -10/Materials | Forcibly received Sfc. Transmogifier from X0-1V1 507 | -10/Materials | Core integrity fell below 50% 540 | -10/Materials | Core integrity restored by X0-1V1 (+15) 632 | -10/Materials | Discovered new exit (range 9) 665 | -10/Materials | Entered another Materials area 665 | -9/Materials | Evolved 2 slots: Utility x2 718 | -9/Materials | X0-1V1 activates XOMVISION 750 | -9/Materials | X0-1V1 caused items to flee you 968 | -9/Materials | Items stopped fleeing you 1090 | -9/Materials | X0-1V1 added 0b10 threat records associated with you (considerable) 1100 | -9/Materials | Discovered new exit (range 13) 1122 | -9/Materials | Core integrity permanently improved by X0-1V1 (+300) 1172 | -9/Materials | Discovered new exit (range 6) 1241 | -9/Materials | X0-1V1 made a cryptic comment about sterilization and BL-4Z3 1246 | -9/Materials | Identified exit to Materials 1246 | -9/Materials | X0-1V1 revealed exit location to -8/Materials 1359 | -9/Materials | Sterilization system engaged 1359 | -9/Materials | Non-combat units ordered to evacuate 1459 | -9/Materials | Combat units ordered to evacuate 1527 | -9/Materials | X0-1V1 foreshadows a heat wave 1554 | -9/Materials | X0-1V1 announced a LAN party 1630 | -9/Materials | Discovered exit to Materials (range 14) 1653 | -9/Materials | Entered another Materials area 1653 | -8/Materials | Evolved 2 slots: Propulsion x1, Weapon x1 1684 | -8/Materials | X0-1V1 sent you into danger 1691 | -8/Materials | Garrison activated, responded to threat 1704 | -8/Materials | Self-destructed Last Messages --------------- LOCATION=MATERIALS GOAL=ESCAPE 01654_ >> DECODED: Shock Trap location. 01669_ Sfc. Transmogrifier converts Adv. Beam Cannon into Blade Saw. 01684_ X0-1V1: "Enjoy the ride!" 01688_ K-01 Serf collects debris. 01690_ Discarded Blade Saw. 01691_ O-16 Technician calls for garrison support. 01691_ ALERT: Activating Garrison Access M001. 01691_ Processing Tank disabled. 01695_ O-16 Technician uses terminal to summon reinforcements. 01695_ ALERT: Hostiles spotted, dispatching reinforcements to Terminal M007. 01695_ O-16 Technician locks terminal. 01698_ Overheating: System interference. 01698_ Tractor Beam temporarily disabled. 01698_ Adv. Beam Cannon temporarily disabled. 01702_ Overheating: System interference. 01702_ Adv. Beam Cannon temporarily disabled. 01704_ Adv. Treads destroyed. Map ----- +----------------------------------------------------+ | ?????????????????????????????????????????????????? | | ?????????????????????????????????????????????????? | | ?????????????????????????????????????????????????? | | ?????????????????????????????????????????????????? | | ?????????????????????????????????????????????????? | | ?????????????????????????????????????????????????? | | ?????????????????????????????????????????????????? | | ??????????????????????????? ???????????????????? | | ??????????????????????????? ?????????????????? | | ??????????????????????????? ??????????????????? | | ??????????????????????????? ??????????????????? | | ??????????????????????????? ??????????????????? | | ??????????????????????????? ?^????????????????? | | ??????????????????????????? #??????????????????? | | ??????????????????????????# #??????????????????? | | ??????????????????????????# #??????????????????? | | ????????????????# ????????# #??????????????????? | | ????????????????? "???????# +??????????????????? | | ?????????????????? ??????# #??????????????????? | | ??????????????????? ?????# #??????????????????? | | ????????????# #####/##### #??????????????????? | | ???????????? #??????????????????? | | ???????????? g #??????????????????? | | ???????????? b #??????????????????? | | ???????????????##### ###g#######???????????????? | | ???????????????????# ??# @ #?????????????? | | ???????????????????????# """o" #?????????????? | | ???????????????????????#[[! "" T???????????????? | | ???????????????????????#[[ """ "???????????????? | | ???????????????????????#[! """ ??????????????? | | ???????????????????????# ! """ ??????????????? | | ???????????????????????# Y ????????????????? | | ???????????????????????## #######????????????????? | | ????????????????????????###??????????????????????? | | ???????????????????????##########################? | | ?????????????????????? #? | | ?????????????????????? #? | | ?????????????????????? #? | | ????????????????????????????#########+######+##### | | ???????????????????????????????????? ???# | | ???????????????????????????????????? "???# | | ??????????????????????????????????? ""??# | | ??????????????????????????????????? ""??# """ | | ?????????????????????????????????? ?# """ | | ?????????????????????????????????? """?# """ | | ?????????????????????????????????# "???# | | ?????????????????????????????????# "???# | | ?????????????????????????????????# ???######## | | ?????????????????????????????????#####???????????? | | ?????????????????????????????????????????????????? | +----------------------------------------------------+ Best States ------------- Heat Dissipation 38 Energy Generation 14 Energy Capacity 265 Matter Stores 314 Matter Capacity 700 Sight Range 18 Terrain Scan Density 10 Armor Coverage 400 Evasion (%) 40 Recoil Reduction 3 Item Schematics ----------------- None Robot Schematics ------------------ None Fabricated ------------ Nothing Repaired ---------- Nothing Studied --------- None Alien Tech Used ----------------- None Achievements -------------- None Challenges ------------ None Game ------ Seed CargoLauncherSpoofer Manual? 0 Play Time 00:11:24 Cumulative 596.7 hours Start 2026.08.25 @ 23:56:36 End 2026.08.26 @ 00:07:23 Sessions 1 Manual Loads 0 Difficulty Rogue Special Mode None Game No. 325 Rogue 325 Adventurer 0 Explorer 0 Win Type - Total 20 Types 10/1/3/1/1/0/1/1/0/2 Lore% 86 Gallery% 84 Achievement% 75 Wizard Run 0 Options --------- Layout 0 ASCII 0 Keyboard 0 Movement Mouse Keybinds 0 Fullscreen 1 Font 18/SmallcapsGlow Map View 76x50 Zoom Use 0% Tactical HUD 1 Map Filters NONE Filters NONE Steam 1 RUN: 4efe27ca-6f65-423c-9a31-c9a707614062